[Event "Early-Titled-Tuesday-Blitz-May-07-2024"]
[Site "Chess.com"]
[Date "2024.05.07"]
[Round "8"]
[White "Rosh1610"]
[Black "AlexanderKing"]
[Result "1-0"]
[WhiteElo "2500"]
[BlackElo "2567"]
[TimeControl "180+1"]
[EndTime "9:35:11 PDT"]
[Termination "Rosh1610 won on time"]

1. e4 {[%clk 0:02:51.9]} 1... c5 {[%clk 0:02:59.2]} 2. Nc3 {[%clk 0:02:51.1]}
2... e6 {[%clk 0:02:59.1]} 3. Nge2 {[%clk 0:02:50.5]} 3... a6 {[%clk 0:02:57]}
4. g3 {[%clk 0:02:49.2]} 4... b5 {[%clk 0:02:51.8]} 5. Bg2 {[%clk 0:02:49]} 5...
Bb7 {[%clk 0:02:52.5]} 6. d4 {[%clk 0:02:47.7]} 6... cxd4 {[%clk 0:02:46.6]} 7.
Nxd4 {[%clk 0:02:48.6]} 7... Nf6 {[%clk 0:02:36.6]} 8. Bg5 {[%clk 0:02:28.6]}
8... h6 {[%clk 0:02:13.3]} 9. Bxf6 {[%clk 0:02:26.2]} 9... Qxf6 {[%clk
0:02:14.2]} 10. O-O {[%clk 0:02:23.9]} 10... Nc6 {[%clk 0:02:09.6]} 11. Nxc6
{[%clk 0:02:22.5]} 11... Bxc6 {[%clk 0:02:10.5]} 12. Re1 {[%clk 0:02:18.7]}
12... Bc5 {[%clk 0:02:07.6]} 13. Qe2 {[%clk 0:01:59.2]} 13... e5 {[%clk
0:01:44.1]} 14. Rad1 {[%clk 0:01:57.5]} 14... Bd4 {[%clk 0:01:35.4]} 15. Rxd4
{[%clk 0:00:55.3]} 15... exd4 {[%clk 0:01:36.3]} 16. Nd5 {[%clk 0:00:55.9]}
16... Qd8 {[%clk 0:01:24.4]} 17. e5 {[%clk 0:00:38.6]} 17... O-O {[%clk
0:01:00.7]} 18. Qg4 {[%clk 0:00:38.1]} 18... Bxd5 {[%clk 0:00:31.1]} 19. Bxd5
{[%clk 0:00:39]} 19... Rc8 {[%clk 0:00:31.6]} 20. Qxd4 {[%clk 0:00:25.5]} 20...
Rxc2 {[%clk 0:00:27.6]} 21. Be4 {[%clk 0:00:24.7]} 21... Rc4 {[%clk 0:00:25.8]}
22. Qd5 {[%clk 0:00:21.5]} 22... Qc7 {[%clk 0:00:20.6]} 23. Bd3 {[%clk
0:00:18.4]} 23... Rc1 {[%clk 0:00:19.5]} 24. Rxc1 {[%clk 0:00:17.7]} 24... Qxc1+
{[%clk 0:00:20.4]} 25. Kg2 {[%clk 0:00:18]} 25... Qxb2 {[%clk 0:00:20.3]} 26.
Qe4 {[%clk 0:00:18.1]} 26... g6 {[%clk 0:00:20.5]} 27. h4 {[%clk 0:00:18.3]}
27... h5 {[%clk 0:00:18.9]} 28. Qd5 {[%clk 0:00:17.9]} 28... Re8 {[%clk
0:00:16.3]} 29. Bxg6 {[%clk 0:00:17.5]} 29... Re7 {[%clk 0:00:10.6]} 30. Bxh5
{[%clk 0:00:17]} 30... Qxe5 {[%clk 0:00:05.6]} 31. Bxf7+ {[%clk 0:00:09.4]}
31... Kg7 {[%clk 0:00:04.5]} 32. Qxe5+ {[%clk 0:00:03.2]} 32... Rxe5 {[%clk
0:00:05.4]} 33. Bb3 {[%clk 0:00:03.4]} 33... a5 {[%clk 0:00:05.1]} 34. f4 {[%clk
0:00:04.1]} 34... Rc5 {[%clk 0:00:01.8]} 35. g4 {[%clk 0:00:03.3]} 35... a4
{[%clk 0:00:02.4]} 36. Bd1 {[%clk 0:00:02.6]} 36... Rc1 {[%clk 0:00:01.4]} 37.
Bf3 {[%clk 0:00:02.9]} 37... Rc2+ {[%clk 0:00:01.4]} 38. Kg3 {[%clk 0:00:03.4]}
38... Rxa2 {[%clk 0:00:02.3]} 39. g5 {[%clk 0:00:04]} 39... b4 {[%clk
0:00:01.5]} 40. h5 {[%clk 0:00:04.4]} 40... b3 {[%clk 0:00:02.1]} 41. h6+ {[%clk
0:00:04.9]} 41... Kf7 {[%clk 0:00:01.2]} 42. Bd5+ {[%clk 0:00:04.7]} 42... Kg6
{[%clk 0:00:00.9]} 43. Be4+ {[%clk 0:00:04.5]} 43... Kf7 {[%clk 0:00:00.9]} 44.
g6+ {[%clk 0:00:04.5]} 44... Kf6 {[%clk 0:00:01]} 45. g7 {[%clk 0:00:05]} 45...
Ra1 {[%clk 0:00:00.7]} 46. g8=Q {[%clk 0:00:04.9]} 46... Rg1+ {[%clk 0:00:00.9]}
47. Bg2 {[%clk 0:00:05.6]} 1-0

[Event "Early-Titled-Tuesday-Blitz-May-07-2024"]
[Site "Chess.com"]
[Date "2024.05.07"]
[Round "8"]
[White "Acva-Alenok"]
[Black "Shuvalov"]
[Result "0-1"]
[WhiteElo "2344"]
[BlackElo "2568"]
[TimeControl "180+1"]
[EndTime "9:35:13 PDT"]
[Termination "Shuvalov won on time"]

1. d4 {[%clk 0:02:59]} 1... Nf6 {[%clk 0:02:55.4]} 2. c4 {[%clk 0:02:58]} 2...
c5 {[%clk 0:02:55.5]} 3. d5 {[%clk 0:02:58.1]} 3... b5 {[%clk 0:02:55.7]} 4. Nf3
{[%clk 0:02:58.6]} 4... b4 {[%clk 0:02:55]} 5. a3 {[%clk 0:02:51.4]} 5... a5
{[%clk 0:02:52.8]} 6. Nbd2 {[%clk 0:02:18.5]} 6... d6 {[%clk 0:02:43.6]} 7. e4
{[%clk 0:02:09.3]} 7... g6 {[%clk 0:02:43.3]} 8. Be2 {[%clk 0:01:37.8]} 8... Bg7
{[%clk 0:02:39.4]} 9. O-O {[%clk 0:01:36.9]} 9... O-O {[%clk 0:02:38.6]} 10. Qc2
{[%clk 0:01:10.1]} 10... e6 {[%clk 0:02:24.2]} 11. dxe6 {[%clk 0:01:06.1]} 11...
Bxe6 {[%clk 0:02:23.5]} 12. axb4 {[%clk 0:00:51.1]} 12... cxb4 {[%clk
0:02:22.1]} 13. Nd4 {[%clk 0:00:48]} 13... Bd7 {[%clk 0:02:14.1]} 14. Bf3 {[%clk
0:00:44.5]} 14... Ra6 {[%clk 0:02:01.5]} 15. Rd1 {[%clk 0:00:34.4]} 15... Re8
{[%clk 0:01:58.1]} 16. Nf1 {[%clk 0:00:32.6]} 16... Bg4 {[%clk 0:01:46.7]} 17.
Bxg4 {[%clk 0:00:26.8]} 17... Nxg4 {[%clk 0:01:47.6]} 18. Bf4 {[%clk 0:00:26.7]}
18... Qf6 {[%clk 0:01:32.3]} 19. Bg3 {[%clk 0:00:25.5]} 19... h5 {[%clk
0:01:31.4]} 20. h3 {[%clk 0:00:23.5]} 20... Ne5 {[%clk 0:01:28.3]} 21. Ne3
{[%clk 0:00:18.7]} 21... Rc8 {[%clk 0:01:25.3]} 22. Nd5 {[%clk 0:00:17.3]} 22...
Qg5 {[%clk 0:01:21.8]} 23. b3 {[%clk 0:00:11.5]} 23... h4 {[%clk 0:01:17.9]} 24.
Bh2 {[%clk 0:00:08.9]} 24... Qd8 {[%clk 0:01:04.1]} 25. Kh1 {[%clk 0:00:08.9]}
25... Nbc6 {[%clk 0:01:02.7]} 26. Nxc6 {[%clk 0:00:08.8]} 26... Rcxc6 {[%clk
0:01:01.8]} 27. Ra4 {[%clk 0:00:08.6]} 27... g5 {[%clk 0:00:56.4]} 28. f4 {[%clk
0:00:08.6]} 28... gxf4 {[%clk 0:00:55.6]} 29. Qf2 {[%clk 0:00:08.5]} 29... Ng6
{[%clk 0:00:55.2]} 30. Nxf4 {[%clk 0:00:07.8]} 30... Qe7 {[%clk 0:00:46.4]} 31.
Nd5 {[%clk 0:00:06.5]} 31... Qxe4 {[%clk 0:00:43.9]} 32. Re1 {[%clk 0:00:06.9]}
32... Qd3 {[%clk 0:00:41.2]} 33. Ra2 {[%clk 0:00:06.1]} 33... Qxb3 {[%clk
0:00:36.2]} 34. Re8+ {[%clk 0:00:06.2]} 34... Kh7 {[%clk 0:00:22.2]} 35. Rae2
{[%clk 0:00:03.9]} 35... Rxc4 {[%clk 0:00:17.6]} 36. Qf5 {[%clk 0:00:03.5]}
36... Rc1+ {[%clk 0:00:16.2]} 37. Bg1 {[%clk 0:00:03.2]} 37... Qd1 {[%clk
0:00:06]} 38. Qh5+ {[%clk 0:00:01.6]} 38... Bh6 {[%clk 0:00:06.7]} 39. Nf6+
{[%clk 0:00:01.5]} 39... Kg7 {[%clk 0:00:07.4]} 40. Rg8+ {[%clk 0:00:01.5]}
40... Kxf6 {[%clk 0:00:07.5]} 41. Qf3+ {[%clk 0:00:00.4]} 41... Bf4 {[%clk
0:00:06.4]} 0-1

[Event "Early-Titled-Tuesday-Blitz-May-07-2024"]
[Site "Chess.com"]
[Date "2024.05.07"]
[Round "8"]
[White "noblerone"]
[Black "HouseOfDurin"]
[Result "0-1"]
[WhiteElo "2485"]
[BlackElo "2252"]
[TimeControl "180+1"]
[EndTime "9:35:15 PDT"]
[Termination "HouseOfDurin won by resignation"]

1. e4 {[%clk 0:02:52.1]} 1... g6 {[%clk 0:03:00]} 2. Nc3 {[%clk 0:02:51.5]} 2...
Bg7 {[%clk 0:03:00.6]} 3. g3 {[%clk 0:02:51.7]} 3... d6 {[%clk 0:03:01.1]} 4.
Bg2 {[%clk 0:02:52.2]} 4... a6 {[%clk 0:03:01.1]} 5. a4 {[%clk 0:02:51.7]} 5...
e5 {[%clk 0:02:58.6]} 6. h4 {[%clk 0:02:47.8]} 6... h5 {[%clk 0:02:57.9]} 7. d3
{[%clk 0:02:47.8]} 7... Ne7 {[%clk 0:02:57.5]} 8. Nf3 {[%clk 0:02:47.8]} 8...
Nbc6 {[%clk 0:02:46.5]} 9. Bg5 {[%clk 0:02:47.6]} 9... f6 {[%clk 0:02:45.8]} 10.
Be3 {[%clk 0:02:47.2]} 10... Be6 {[%clk 0:02:44.7]} 11. Qd2 {[%clk 0:02:46.7]}
11... Qd7 {[%clk 0:02:44.3]} 12. d4 {[%clk 0:02:35.4]} 12... exd4 {[%clk
0:02:37.4]} 13. Nxd4 {[%clk 0:02:35.5]} 13... Ne5 {[%clk 0:02:37.6]} 14. Nxe6
{[%clk 0:02:30.7]} 14... Qxe6 {[%clk 0:02:37.8]} 15. b3 {[%clk 0:02:28.3]} 15...
O-O-O {[%clk 0:02:32.4]} 16. Qe2 {[%clk 0:01:44.7]} 16... f5 {[%clk 0:02:24.1]}
17. Nd5 {[%clk 0:01:40.9]} 17... Ng4 {[%clk 0:02:11.2]} 18. Nxe7+ {[%clk
0:01:36.3]} 18... Qxe7 {[%clk 0:02:11.1]} 19. Bg5 {[%clk 0:01:35.6]} 19... Bf6
{[%clk 0:02:06.6]} 20. Bxf6 {[%clk 0:01:24.7]} 20... Qxf6 {[%clk 0:02:07.2]} 21.
O-O {[%clk 0:01:24.3]} 21... Rhe8 {[%clk 0:02:02.3]} 22. b4 {[%clk 0:01:23.1]}
22... fxe4 {[%clk 0:01:55.6]} 23. b5 {[%clk 0:01:23.4]} 23... a5 {[%clk
0:01:50.3]} 24. b6 {[%clk 0:01:22.2]} 24... cxb6 {[%clk 0:01:44.8]} 25. Rab1
{[%clk 0:01:22.2]} 25... d5 {[%clk 0:01:43.6]} 26. Bh3 {[%clk 0:01:20]} 26...
Qe6 {[%clk 0:01:37.1]} 27. Rb5 {[%clk 0:01:15.6]} 27... Rd6 {[%clk 0:01:36.3]}
28. Rfb1 {[%clk 0:01:15.2]} 28... d4 {[%clk 0:01:26.4]} 29. Bxg4 {[%clk
0:00:55.9]} 29... hxg4 {[%clk 0:01:25.9]} 30. Rg5 {[%clk 0:00:32.1]} 30... d3
{[%clk 0:01:25.6]} 31. Qd2 {[%clk 0:00:20.8]} 31... e3 {[%clk 0:01:11.7]} 32.
fxe3 {[%clk 0:00:20.9]} 32... Qxe3+ {[%clk 0:01:11.5]} 33. Qxe3 {[%clk
0:00:20.9]} 33... Rxe3 {[%clk 0:01:11.1]} 34. cxd3 {[%clk 0:00:20.8]} 34...
Rxg3+ {[%clk 0:01:10.7]} 35. Kf2 {[%clk 0:00:20.4]} 35... Rgxd3 {[%clk 0:00:54]}
36. Rxg4 {[%clk 0:00:19.5]} 36... R3d4 {[%clk 0:00:54.3]} 37. Rbg1 {[%clk
0:00:18.1]} 37... Rxg4 {[%clk 0:00:53.1]} 38. Rxg4 {[%clk 0:00:17.1]} 38... Kc7
{[%clk 0:00:50.4]} 39. Ke3 {[%clk 0:00:16.5]} 39... b5 {[%clk 0:00:43.8]} 40.
axb5 {[%clk 0:00:15.2]} 40... Kb6 {[%clk 0:00:44.2]} 41. Rg5 {[%clk 0:00:13]}
41... a4 {[%clk 0:00:43.2]} 42. Ke4 {[%clk 0:00:11.7]} 42... a3 {[%clk
0:00:42.8]} 43. Rg3 {[%clk 0:00:11.5]} 43... Kxb5 {[%clk 0:00:39.6]} 44. Rxa3
{[%clk 0:00:10.5]} 44... Kc6 {[%clk 0:00:38.7]} 45. Rc3+ {[%clk 0:00:08]} 45...
Kd7 {[%clk 0:00:35.2]} 46. Ke5 {[%clk 0:00:08.3]} 46... b5 {[%clk 0:00:31]} 47.
Ra3 {[%clk 0:00:08.9]} 47... Rb6 {[%clk 0:00:30.2]} 48. Kd5 {[%clk 0:00:08.4]}
48... b4 {[%clk 0:00:29.4]} 49. Ra7+ {[%clk 0:00:08.4]} 49... Ke8 {[%clk
0:00:29.8]} 50. Kc5 {[%clk 0:00:08.5]} 50... Rb8 {[%clk 0:00:29.6]} 51. Ra2
{[%clk 0:00:07]} 51... b3 {[%clk 0:00:29.2]} 52. Rb2 {[%clk 0:00:07.2]} 52...
Kf7 {[%clk 0:00:29.2]} 53. Kd6 {[%clk 0:00:06.1]} 53... Kg7 {[%clk 0:00:26]} 54.
Ke6 {[%clk 0:00:04.9]} 54... Rb6+ {[%clk 0:00:24.9]} 55. Ke7 {[%clk 0:00:05.2]}
55... Kh6 {[%clk 0:00:24.9]} 56. Kf7 {[%clk 0:00:04.2]} 56... Kh5 {[%clk
0:00:23.4]} 57. Kg7 {[%clk 0:00:04.6]} 57... Kxh4 {[%clk 0:00:22.4]} 58. Rh2+
{[%clk 0:00:04.4]} 58... Kg3 {[%clk 0:00:21.7]} 59. Rb2 {[%clk 0:00:04.3]} 59...
g5 {[%clk 0:00:21.3]} 0-1

[Event "Early-Titled-Tuesday-Blitz-May-07-2024"]
[Site "Chess.com"]
[Date "2024.05.07"]
[Round "8"]
[White "HanSchut"]
[Black "Gryffindorac8"]
[Result "1-0"]
[WhiteElo "2375"]
[BlackElo "2511"]
[TimeControl "180+1"]
[EndTime "9:35:16 PDT"]
[Termination "HanSchut won by resignation"]

1. e4 {[%clk 0:02:49.5]} 1... c5 {[%clk 0:02:59.8]} 2. Nf3 {[%clk 0:02:48.6]}
2... d6 {[%clk 0:02:59.9]} 3. d4 {[%clk 0:02:48.9]} 3... cxd4 {[%clk 0:03:00.8]}
4. Nxd4 {[%clk 0:02:49.2]} 4... Nf6 {[%clk 0:03:01]} 5. f3 {[%clk 0:02:49.9]}
5... g6 {[%clk 0:02:40.3]} 6. c4 {[%clk 0:02:47.8]} 6... Bg7 {[%clk 0:02:38.3]}
7. Be3 {[%clk 0:02:48.4]} 7... Nc6 {[%clk 0:02:37]} 8. Qd2 {[%clk 0:02:48.8]}
8... O-O {[%clk 0:02:37]} 9. Nc3 {[%clk 0:02:48.7]} 9... Bd7 {[%clk 0:02:34.5]}
10. Rc1 {[%clk 0:02:48.1]} 10... Nxd4 {[%clk 0:02:30.3]} 11. Bxd4 {[%clk
0:02:49]} 11... Bc6 {[%clk 0:02:29.3]} 12. b4 {[%clk 0:02:42.7]} 12... a5 {[%clk
0:02:26.3]} 13. b5 {[%clk 0:02:41.4]} 13... Bd7 {[%clk 0:02:22.9]} 14. a4 {[%clk
0:02:40.9]} 14... Be6 {[%clk 0:02:17.6]} 15. Qf2 {[%clk 0:02:36.8]} 15... Nd7
{[%clk 0:02:11]} 16. Be3 {[%clk 0:02:16.9]} 16... Rc8 {[%clk 0:02:06.9]} 17. Nd5
{[%clk 0:02:15.6]} 17... Bxd5 {[%clk 0:02:03.5]} 18. exd5 {[%clk 0:02:12]} 18...
Nc5 {[%clk 0:01:57.8]} 19. Bxc5 {[%clk 0:02:05.2]} 19... Rxc5 {[%clk 0:01:58.7]}
20. Bd3 {[%clk 0:01:55.3]} 20... e6 {[%clk 0:01:10.4]} 21. dxe6 {[%clk
0:01:46.7]} 21... fxe6 {[%clk 0:01:08.1]} 22. O-O {[%clk 0:01:43.6]} 22... b6
{[%clk 0:00:58.9]} 23. Qe2 {[%clk 0:01:34.3]} 23... Bd4+ {[%clk 0:00:55.8]} 24.
Kh1 {[%clk 0:01:34.5]} 24... Qf6 {[%clk 0:00:46.7]} 25. Rfe1 {[%clk 0:01:25.8]}
25... Be5 {[%clk 0:00:40.7]} 26. Qe4 {[%clk 0:00:57]} 26... Qf4 {[%clk
0:00:29.7]} 27. Qxf4 {[%clk 0:00:53]} 27... Rxf4 {[%clk 0:00:30.6]} 28. Rcd1
{[%clk 0:00:48.6]} 28... Rd4 {[%clk 0:00:29.6]} 29. Bf1 {[%clk 0:00:46.5]} 29...
Rxd1 {[%clk 0:00:26.5]} 30. Rxd1 {[%clk 0:00:47.4]} 30... Kf7 {[%clk 0:00:26.4]}
31. g3 {[%clk 0:00:45]} 31... g5 {[%clk 0:00:25.1]} 32. Kg2 {[%clk 0:00:41.8]}
32... h6 {[%clk 0:00:25.2]} 33. Kf2 {[%clk 0:00:40.3]} 33... Kf6 {[%clk
0:00:23.7]} 34. Ke3 {[%clk 0:00:38.6]} 34... Ke7 {[%clk 0:00:21.5]} 35. Bd3
{[%clk 0:00:20]} 35... d5 {[%clk 0:00:20.3]} 36. Rc1 {[%clk 0:00:14.9]} 36...
Kd6 {[%clk 0:00:15.7]} 37. Rc2 {[%clk 0:00:14.9]} 37... Bf6 {[%clk 0:00:12.6]}
38. cxd5 {[%clk 0:00:13.4]} 38... exd5 {[%clk 0:00:11.5]} 39. Rd2 {[%clk
0:00:11]} 39... Rc1 {[%clk 0:00:09.4]} 40. Be4 {[%clk 0:00:09.6]} 40... Rc5
{[%clk 0:00:09]} 41. Ke2 {[%clk 0:00:09.4]} 41... Bc3 {[%clk 0:00:08]} 42. Rd3
{[%clk 0:00:09.4]} 42... Ke5 {[%clk 0:00:08]} 43. Bxd5 {[%clk 0:00:08.1]} 43...
Bd4 {[%clk 0:00:04.4]} 44. Be4 {[%clk 0:00:08.1]} 44... Rc2+ {[%clk 0:00:04.5]}
45. Rd2 {[%clk 0:00:08.7]} 45... Rc4 {[%clk 0:00:02.9]} 46. h4 {[%clk
0:00:07.3]} 46... gxh4 {[%clk 0:00:02.5]} 47. gxh4 {[%clk 0:00:08.2]} 47... Rxa4
{[%clk 0:00:03]} 48. h5 {[%clk 0:00:08.4]} 48... Rb4 {[%clk 0:00:02.8]} 49. Bc6
{[%clk 0:00:07.5]} 49... a4 {[%clk 0:00:02.5]} 50. Kd3 {[%clk 0:00:07.8]} 50...
Bb2 {[%clk 0:00:01.7]} 51. Re2+ {[%clk 0:00:07.9]} 51... Kf4 {[%clk 0:00:01.9]}
52. Kc2 {[%clk 0:00:08.5]} 52... a3 {[%clk 0:00:02.1]} 53. Re4+ {[%clk
0:00:07.2]} 53... Kg5 {[%clk 0:00:02.7]} 54. Rxb4 {[%clk 0:00:07]} 1-0

[Event "Early-Titled-Tuesday-Blitz-May-07-2024"]
[Site "Chess.com"]
[Date "2024.05.07"]
[Round "8"]
[White "ValentinDragnev"]
[Black "yaguigor"]
[Result "1-0"]
[WhiteElo "2727"]
[BlackElo "2579"]
[TimeControl "180+1"]
[EndTime "9:35:23 PDT"]
[Termination "ValentinDragnev won by resignation"]

1. e4 {[%clk 0:03:00.9]} 1... c5 {[%clk 0:02:58.9]} 2. Nf3 {[%clk 0:03:00.8]}
2... Nc6 {[%clk 0:02:58.3]} 3. d4 {[%clk 0:02:59.7]} 3... cxd4 {[%clk
0:02:57.9]} 4. Nxd4 {[%clk 0:03:00.6]} 4... Nf6 {[%clk 0:02:57.3]} 5. Nc3 {[%clk
0:02:58]} 5... e6 {[%clk 0:02:57]} 6. g3 {[%clk 0:02:44.2]} 6... Qb6 {[%clk
0:02:51.9]} 7. Nb3 {[%clk 0:02:37.6]} 7... Bb4 {[%clk 0:02:50.9]} 8. Bg2 {[%clk
0:02:36]} 8... d5 {[%clk 0:02:50.8]} 9. O-O {[%clk 0:02:30.2]} 9... Bxc3 {[%clk
0:02:44.6]} 10. bxc3 {[%clk 0:02:21.2]} 10... O-O {[%clk 0:02:43.4]} 11. exd5
{[%clk 0:02:16.1]} 11... Nxd5 {[%clk 0:02:33.4]} 12. c4 {[%clk 0:02:12.5]} 12...
Nde7 {[%clk 0:02:31.4]} 13. Bb2 {[%clk 0:02:10]} 13... Rd8 {[%clk 0:02:24]} 14.
Qg4 {[%clk 0:02:08.8]} 14... e5 {[%clk 0:02:23.5]} 15. Qe2 {[%clk 0:01:50.5]}
15... Be6 {[%clk 0:02:11.3]} 16. Rfe1 {[%clk 0:01:49]} 16... Rac8 {[%clk
0:01:56.3]} 17. Rad1 {[%clk 0:01:43.6]} 17... Rxd1 {[%clk 0:01:50.8]} 18. Rxd1
{[%clk 0:01:43.5]} 18... Rd8 {[%clk 0:01:51.4]} 19. Rxd8+ {[%clk 0:01:41.8]}
19... Qxd8 {[%clk 0:01:50.6]} 20. h4 {[%clk 0:01:36.9]} 20... h6 {[%clk
0:01:46.3]} 21. Nc5 {[%clk 0:01:35.1]} 21... Bc8 {[%clk 0:01:39.6]} 22. Nd3
{[%clk 0:01:35.3]} 22... f6 {[%clk 0:01:37.9]} 23. f4 {[%clk 0:01:29]} 23... Be6
{[%clk 0:01:30.7]} 24. fxe5 {[%clk 0:01:28.3]} 24... fxe5 {[%clk 0:01:24]} 25.
Nxe5 {[%clk 0:01:09.8]} 25... Qb6+ {[%clk 0:01:22.4]} 26. Kh2 {[%clk 0:01:10.4]}
26... Bf5 {[%clk 0:01:07.6]} 27. Nxc6 {[%clk 0:01:00.6]} 27... Nxc6 {[%clk
0:01:06.8]} 28. Qe8+ {[%clk 0:00:56.6]} 28... Kh7 {[%clk 0:01:06.3]} 29. Qf7
{[%clk 0:00:55.4]} 29... Qxb2 {[%clk 0:01:04.3]} 30. Qxf5+ {[%clk 0:00:55.4]}
30... Kh8 {[%clk 0:01:04.3]} 31. Qf8+ {[%clk 0:00:55.1]} 31... Kh7 {[%clk
0:01:03.1]} 32. Be4+ {[%clk 0:00:55.7]} 32... g6 {[%clk 0:01:03.4]} 33. Qf7+
{[%clk 0:00:48]} 33... Qg7 {[%clk 0:00:58.3]} 34. Bxg6+ {[%clk 0:00:48]} 34...
Kh8 {[%clk 0:00:58.8]} 35. Qe8+ {[%clk 0:00:20.5]} 35... Qg8 {[%clk 0:00:59.3]}
36. Qxg8+ {[%clk 0:00:21.2]} 36... Kxg8 {[%clk 0:00:59.5]} 37. Be4 {[%clk
0:00:22.1]} 37... Nb4 {[%clk 0:00:55.4]} 38. a3 {[%clk 0:00:17.8]} 38... Na6
{[%clk 0:00:55.4]} 39. Bxb7 {[%clk 0:00:18]} 39... Nc5 {[%clk 0:00:55.5]} 40.
Bd5+ {[%clk 0:00:18.7]} 40... Kg7 {[%clk 0:00:56.1]} 41. g4 {[%clk 0:00:19.6]}
41... Kf6 {[%clk 0:00:56]} 42. Kg3 {[%clk 0:00:20.2]} 42... Ke5 {[%clk 0:00:54]}
43. Kf3 {[%clk 0:00:16.6]} 43... a5 {[%clk 0:00:52.7]} 44. Ke3 {[%clk
0:00:15.7]} 44... Na4 {[%clk 0:00:47.6]} 45. g5 {[%clk 0:00:12.3]} 45... hxg5
{[%clk 0:00:46.9]} 46. hxg5 {[%clk 0:00:13.2]} 46... Kf5 {[%clk 0:00:41.5]} 47.
Kd4 {[%clk 0:00:13.2]} 47... Kxg5 {[%clk 0:00:40.9]} 48. c5 {[%clk 0:00:11.3]}
48... Kf6 {[%clk 0:00:41]} 49. Bb3 {[%clk 0:00:08]} 49... Nb2 {[%clk 0:00:39.9]}
50. Ke3 {[%clk 0:00:06.7]} 50... Ke5 {[%clk 0:00:36.2]} 51. Kd2 {[%clk 0:00:07]}
51... a4 {[%clk 0:00:33.1]} 52. Ba2 {[%clk 0:00:07.4]} 1-0

[Event "Early-Titled-Tuesday-Blitz-May-07-2024"]
[Site "Chess.com"]
[Date "2024.05.07"]
[Round "8"]
[White "Strong_Prodigy"]
[Black "Matsanovic"]
[Result "1-0"]
[WhiteElo "2501"]
[BlackElo "2581"]
[TimeControl "180+1"]
[EndTime "9:35:23 PDT"]
[Termination "Strong_Prodigy won on time"]

1. d4 {[%clk 0:03:00.9]} 1... Nf6 {[%clk 0:02:59.6]} 2. c4 {[%clk 0:03:00.8]}
2... e6 {[%clk 0:03:00]} 3. Nf3 {[%clk 0:03:01.2]} 3... d5 {[%clk 0:03:00.7]} 4.
g3 {[%clk 0:03:01.9]} 4... dxc4 {[%clk 0:03:01.1]} 5. Bg2 {[%clk 0:03:02.6]}
5... a6 {[%clk 0:03:01.3]} 6. O-O {[%clk 0:03:02.7]} 6... Nc6 {[%clk 0:03:02]}
7. a4 {[%clk 0:03:03.1]} 7... Bb4 {[%clk 0:02:59.6]} 8. Na3 {[%clk 0:03:01.7]}
8... c3 {[%clk 0:02:58.4]} 9. Qb3 {[%clk 0:02:46]} 9... cxb2 {[%clk 0:02:55.5]}
10. Bxb2 {[%clk 0:02:46.9]} 10... a5 {[%clk 0:02:41.3]} 11. Nc4 {[%clk
0:02:30.2]} 11... O-O {[%clk 0:02:38.8]} 12. Rfd1 {[%clk 0:02:30.6]} 12... Bd7
{[%clk 0:02:35.1]} 13. Nfe5 {[%clk 0:02:29.4]} 13... Nd5 {[%clk 0:02:32.1]} 14.
e4 {[%clk 0:02:21.1]} 14... Nde7 {[%clk 0:02:29.2]} 15. Rac1 {[%clk 0:02:02.3]}
15... Qc8 {[%clk 0:02:07.6]} 16. Nxd7 {[%clk 0:01:39.1]} 16... Qxd7 {[%clk
0:02:07.5]} 17. d5 {[%clk 0:01:39.8]} 17... exd5 {[%clk 0:02:06.2]} 18. exd5
{[%clk 0:01:40.1]} 18... Nd8 {[%clk 0:02:01.7]} 19. d6 {[%clk 0:01:00.3]} 19...
cxd6 {[%clk 0:02:00.6]} 20. Nb6 {[%clk 0:01:00.3]} 20... Qe6 {[%clk 0:01:50.9]}
21. Qxe6 {[%clk 0:00:44.9]} 21... Nxe6 {[%clk 0:01:51.8]} 22. Nxa8 {[%clk
0:00:45.4]} 22... Rxa8 {[%clk 0:01:51.3]} 23. Bxb7 {[%clk 0:00:42.3]} 23... Rb8
{[%clk 0:01:51.8]} 24. Bg2 {[%clk 0:00:41.9]} 24... Nc5 {[%clk 0:01:44.6]} 25.
Bc3 {[%clk 0:00:13.8]} 25... Nxa4 {[%clk 0:00:54.7]} 26. Bxb4 {[%clk 0:00:13.8]}
26... axb4 {[%clk 0:00:55.6]} 27. Rxd6 {[%clk 0:00:14.1]} 27... b3 {[%clk
0:00:52.4]} 28. Rcd1 {[%clk 0:00:14.4]} 28... g6 {[%clk 0:00:47.8]} 29. Rd8+
{[%clk 0:00:14]} 29... Rxd8 {[%clk 0:00:48.5]} 30. Rxd8+ {[%clk 0:00:14.4]}
30... Kg7 {[%clk 0:00:49.4]} 31. Rb8 {[%clk 0:00:06.2]} 31... b2 {[%clk
0:00:42.5]} 32. Be4 {[%clk 0:00:06.4]} 32... Nc3 {[%clk 0:00:18.1]} 33. Bc2
{[%clk 0:00:06.3]} 33... b1=Q+ {[%clk 0:00:12.3]} 34. Bxb1 {[%clk 0:00:06.1]}
34... Nxb1 {[%clk 0:00:13]} 35. Rxb1 {[%clk 0:00:06.5]} 35... h5 {[%clk
0:00:13.7]} 36. Kg2 {[%clk 0:00:06.9]} 36... Nf5 {[%clk 0:00:13.4]} 37. Kf3
{[%clk 0:00:06.7]} 37... Nd4+ {[%clk 0:00:13.7]} 38. Ke4 {[%clk 0:00:06.6]}
38... Ne6 {[%clk 0:00:12.3]} 39. Rb8 {[%clk 0:00:05.4]} 39... Kf6 {[%clk
0:00:12.2]} 40. f4 {[%clk 0:00:04.9]} 40... Nc5+ {[%clk 0:00:12]} 41. Kd5 {[%clk
0:00:04.7]} 41... Ne6 {[%clk 0:00:11.8]} 42. h3 {[%clk 0:00:03.5]} 42... h4
{[%clk 0:00:10.4]} 43. gxh4 {[%clk 0:00:02.6]} 43... Nxf4+ {[%clk 0:00:10.6]}
44. Ke4 {[%clk 0:00:03]} 44... Nh5 {[%clk 0:00:08]} 45. Rb6+ {[%clk 0:00:03.1]}
45... Kg7 {[%clk 0:00:06.8]} 46. Ke5 {[%clk 0:00:03.6]} 46... Ng3 {[%clk
0:00:04.9]} 47. Kd6 {[%clk 0:00:03.4]} 47... Nf5+ {[%clk 0:00:04.1]} 48. Kd7
{[%clk 0:00:04.1]} 48... Nxh4 {[%clk 0:00:04.1]} 49. Ke8 {[%clk 0:00:04.4]}
49... Nf5 {[%clk 0:00:02.1]} 50. Rc6 {[%clk 0:00:04.6]} 50... Nh6 {[%clk
0:00:00.4]} 51. Rc7 {[%clk 0:00:04.1]} 1-0